fUST/lending_fUST_20240322
["ID","MTS","AMOUNT","RATE_DAILY","PERIOD"]
[320032436,1711090238174,-500.0,0.00030684,2]
[320032438,1711090238186,-1996.58,0.00030684,2]
[320032440,1711090238196,-500.0,0.00030684,2]
[320032442,1711090238205,-500.0,0.00030684,2]
[320032444,1711090238214,-500.0,0.00030684,2]
[320032447,1711090238224,-500.0,0.00030684,2]
[320032449,1711090238233,-2139.76,0.00030684,2]
[320032450,1711090238243,-500.0,0.00030684,2]
[320032452,1711090238253,-989.22,0.00030684,2]
[320032453,1711090238262,-762.09,0.00030684,2]
[320032454,1711090238274,-500.0,0.00030684,2]
[320032455,1711090238283,-500.0,0.00030684,2]
[320032456,1711090238292,-500.0,0.00030684,2]
[320032457,1711090238301,-2421.69,0.00030684,2]
[320032458,1711090238310,-596.38,0.00030684,2]
[320032459,1711090238319,-1577.14,0.00030684,2]
[320032460,1711090238329,-500.0,0.00030684,2]
[320032461,1711090238338,-2021.3,0.00030684,2]
[320032462,1711090238347,-500.0,0.00030684,2]
[320032463,1711090238356,-1597.68,0.00030684,2]
[320032464,1711090238364,-404.05981163,0.00030684,2]
[320032465,1711090238373,-500.0,0.00030684,2]
[320032466,1711090238382,-575.51,0.00030684,2]
[320032467,1711090238391,-535.94,0.00030684,2]
[320032468,1711090238400,-500.0,0.00030684,2]
[320032469,1711090238410,-9110.01,0.00030684,2]
[320032470,1711090238418,-500.0,0.00030684,30]
[320032471,1711090238427,-500.0,0.00030684,2]
[320032472,1711090238436,-256.43021072,0.00030684,2]
[320032473,1711090238445,-500.0,0.00030684,2]
[320032474,1711090238454,-466.09615425,0.00030684,2]
[320032475,1711090238462,-2941.92,0.00030684,2]
[320032476,1711090238471,-500.0,0.00030684,2]
[320032477,1711090238480,-500.0,0.00030684,2]
[320032478,1711090238489,-2077.82,0.00030684,2]
[320032479,1711090238497,-3449.41,0.00030684,2]
[320032480,1711090238506,-504.81976496,0.00030684,2]
[320032481,1711090238515,-816.6,0.00030684,2]
[320032482,1711090238524,-500.0,0.00030684,2]
[320032483,1711090238533,-500.57478116,0.00030684,2]
[320032484,1711090238543,-638.49,0.00030684,2]
[320032485,1711090238553,-628.01,0.00030684,2]
[320032486,1711090238562,-3152.32,0.00030684,2]
[320032487,1711090238572,-500.10265167,0.00030684,2]
[320032488,1711090238689,-13578.69894168,0.00030684,2]
[320032489,1711090238735,-17073.3598546,0.00030684,2]
[320032511,1711090247860,-500.0,0.00030136,2]
[320032512,1711090247870,-500.0,0.00030136,2]
[320032513,1711090247880,-6203.41,0.00030136,2]
[320032514,1711090247890,-2644.88120372,0.00030684,2]
[320032515,1711090247900,-500.0,0.00030684,2]
[320032516,1711090247910,-503.18262879,0.00030684,2]
[320032517,1711090247920,-500.0,0.00030684,2]
[320032518,1711090247929,-500.0,0.00030684,2]
[320032519,1711090247939,-500.0,0.00030684,2]
[320032520,1711090247949,-405.92032026,0.00030684,2]
[320032521,1711090247958,-1178.12,0.00030684,2]
[320032522,1711090247967,-500.0,0.00030684,2]
[320032523,1711090247977,-500.0,0.00030684,2]
[320032524,1711090247986,-566.23,0.00030684,2]
[320032525,1711090247995,-500.0,0.00030684,2]
[320032526,1711090248005,-547.55,0.00030684,2]
[320032527,1711090248014,-1532.23,0.00030684,2]
[320032528,1711090248024,-9657.74,0.00030684,2]
[320032529,1711090248033,-3289.76,0.00030684,2]
[320032530,1711090248042,-2045.32,0.00030684,2]
[320032531,1711090248052,-500.0,0.00030684,2]
[320032532,1711090248061,-500.9308153,0.00030684,2]
[320032533,1711090248071,-257.5723004,0.00030684,2]
[320032565,1711091234324,-417.20154934,0.0002591,2]
[320032566,1711091234345,-278.58534379,0.0002591,2]
[320032567,1711091234375,-45.42397144,0.0002591,2]
[320032568,1711091234395,-411.07815448,0.00025911,2]
[320032570,1711091346135,-255.19689506,0.0002591,2]
[320032571,1711091346155,-107.97507497,0.00025911,2]
[320032578,1711091394303,401.60738784,0.00023811,2]
[320032697,1711091442990,-1998.76580577,0.00025912,2]
[320032708,1711091445990,-41485.58390211,0.00025912,2]
[320032709,1711091450187,161.25176797,0.00025812,2]
[320032710,1711091455676,456.50212592,0.00025911,2]
[320032732,1711092430390,-267.73825856,0.00023812,2]
[320032733,1711092430410,-671.98971665,0.00025911,2]
[320032734,1711092430431,-500.0,0.00027397,2]
[320032735,1711092430451,-500.0,0.00027397,2]
[320032736,1711092430471,-502.21050744,0.00027397,2]
[320032737,1711092430492,-500.0,0.00027397,2]
[320032738,1711092430511,-171.928935,0.00027572,2]
[320032739,1711092430532,-213.785394,0.00028102,2]
[320032740,1711092430551,-267.73825856,0.00028812,2]
[320032741,1711092430570,-171.928935,0.00028825,2]
[320032742,1711092430589,-4704.74879012,0.00029537,2]
[320032743,1711092430608,-7752.82337168,0.0002988,2]
[320032744,1711092430628,-2874.9409515,0.000299,2]
[320032745,1711092430648,-131119.6920692,0.0003,7]
[320032746,1711092437153,-134413.81366003,0.0003,7]
[320032748,1711092447108,-2713.1662101,0.0003,7]
[320032751,1711092561162,-2034.607004,0.00024352,2]
[320032759,1711092608261,674.4183485,0.00024679,2]
[320032814,1711092638245,-153.0,0.00025897,2]
[320032815,1711092638264,-290.32753414,0.00025897,2]
[320032821,1711092642545,-487.14,0.00025897,2]
[320032822,1711092642558,-504.63526,0.00025897,2]
[320032823,1711092642570,-700.0,0.00025897,2]
[320032824,1711092642583,-546.08340015,0.00025897,2]
[320032840,1711092657542,421.78993696,0.00024679,2]
[320032841,1711092661756,155.44116798,0.0002587,2]
[320032858,1711092691571,265.21175813,0.00025896,7]
[320032860,1711092732225,500.0,0.00025896,2]
[320032861,1711092732483,500.0,0.00025896,2]
[320032862,1711092732770,500.0,0.00025896,2]
[320032863,1711092733054,500.0,0.00025896,2]
[320032864,1711092733325,500.0,0.00025896,2]
[320032865,1711092733602,500.0,0.00025896,2]
[320032866,1711092733877,500.0,0.00025896,2]
[320032886,1711093641305,-150.0,0.00023797,2]
[320032887,1711093641329,-955.88137658,0.00025391,2]
[320032888,1711093641351,-481.11676275,0.00025637,2]
[320032889,1711093641371,-1152.76695468,0.00025809,2]
[320032890,1711093641392,-1476.73704985,0.00025908,2]
[320032891,1711093643098,-102.65829781,0.00025908,2]
[320032892,1711093643120,-222.46783416,0.00027397,2]
[320032893,1711093643145,-175.893304,0.00027397,2]
[320032894,1711093643164,-250.0,0.00027727,2]
[320032895,1711093643185,-1822.419117,0.00027753,2]
[320032896,1711093643207,-175.893304,0.00028199,2]
[320032897,1711093643228,-150.76002153,0.00028766,2]
[320032898,1711093643249,-500.0,0.00028767,2]
[320032899,1711093643268,-150.0,0.00028797,2]
[320032900,1711093643287,-677.04854745,0.00029,2]
[320032901,1711093643307,-175.893304,0.00029,2]
[320032902,1711093643327,-170.869594,0.00029355,2]
[320032903,1711093643347,-182.055641,0.00029355,2]
[320032904,1711093643366,-150.0,0.00029766,2]
[320032905,1711093643385,-175.893304,0.00029801,2]
[320032906,1711093643405,-7107.36519347,0.0003,7]
[320032907,1711093649136,-13066.99669443,0.0003,7]
[320032957,1711093832260,-1328.24486844,0.00025909,2]
[320032964,1711093832309,-2196.2319469,0.00025909,2]
[320033000,1711093846480,-37614.76786949,0.00025909,2]
[320033001,1711093846490,-163999.26261721,0.00025909,2]
[320033029,1711094058078,2317.9282048,0.000125,2]
[320033076,1711094515098,7607.54045418,0.000125,2]
[320033099,1711094851146,-411.07815448,0.00025907,2]
[320033100,1711094851167,-750.46630651,0.000274,2]
[320033101,1711094851188,-175.893304,0.00027683,2]
[320033102,1711094851208,-691.0566716,0.00027872,2]
[320033103,1711094851231,-257.622907,0.00027939,2]
[320033104,1711094851251,-182.9128405,0.00028053,2]
[320033105,1711094851272,-6882.7725328,0.00028073,2]
[320033106,1711094851292,-2648.0923512,0.00028102,2]
[320033107,1711094851312,-195.0010941,0.00028387,2]
[320033108,1711094851335,-160.4874882,0.0002846,2]
[320033109,1711094851357,-500.0,0.00028767,2]
[320033110,1711094851378,-201.8047941,0.00029432,2]
[320033111,1711094851399,-403.0368346,0.00029432,2]
[320033112,1711094851420,-201.8047941,0.00029432,2]
[320033113,1711094851440,-2826.2114621,0.00029968,2]
[320033171,1711095032657,-1656.565,0.00025908,2]
[320033200,1711095038463,-18111.07239983,0.00025908,2]
[320033202,1711095038752,-8966.9286095,0.00025908,2]
[320033203,1711095038764,-7004.55847976,0.00025908,2]
[320033211,1711095040746,-503.01188397,0.00025908,2]
[320033225,1711095043602,-797.65096183,0.00025908,2]
[320033228,1711095043615,-409.910339,0.00025908,2]
[320033230,1711095043628,-1678.59722207,0.00025908,2]
[320033419,1711096238665,-1276.28874409,0.00025908,2]
[320033420,1711096238676,-9004.1922815,0.00025908,2]
[320033431,1711096242374,356.01982481,0.00025907,2]
[320033432,1711096242399,505.80900412,0.00025907,2]
[320033433,1711096243098,307.39444955,0.00025907,2]
[320033456,1711096246783,-457.71466524,0.00025908,2]
[320033457,1711096246839,-1082.05842394,0.00025908,2]
[320033458,1711096272947,187.32257474,0.00025808,2]
[320033462,1711097234278,-1610.72883009,0.00025143,2]
[320033463,1711097245100,-150.0,0.00023043,2]
[320033464,1711097245121,-389.27116991,0.00025143,2]
[320033465,1711097245141,-955.88137658,0.00025385,2]
[320033466,1711097245162,-481.11676275,0.0002555,2]
[320033467,1711097245183,-358.79027244,0.00025805,2]
[320033468,1711097245204,-1476.73704985,0.00025904,2]
[320033469,1711097245371,-278.743317,0.00026332,2]
[320033470,1711097245392,-125.96219533,0.00026829,2]
[320033472,1711097350114,-232.82807708,0.00026829,2]
[320033630,1711097441762,-592.64522348,0.00025905,2]
[320033658,1711097445948,-37893.81257551,0.00025905,2]
[320033659,1711097453526,384.25565156,0.00025805,2]
[320033660,1711097463589,3933.16421374,0.00026829,2]
[320033661,1711097475244,154.86062544,0.00025904,2]
[320033662,1711097487940,304.8751182,0.00025904,2]
[320033696,1711097508887,1955.55699751,0.00025904,2]
[320033697,1711097514916,154.86062544,0.00025904,2]
[320033698,1711097543133,150.0,0.00023805,2]
[320033699,1711097547631,2270.0195592,0.00025904,2]
[320033700,1711097547873,154.86062544,0.00025904,2]
[320033744,1711098439183,-169.46132886,0.00023805,2]
[320033745,1711098439204,-278.743317,0.00025123,2]
[320033746,1711098439224,-229.50105833,0.00025785,2]
[320033747,1711098447146,-150.0,0.00023804,2]
[320033748,1711098447170,-21.15187122,0.00025785,2]
[320033749,1711098447193,-256.17043438,0.00025787,2]
[320033750,1711098447215,-2570.31801409,0.00025884,2]
[320033751,1711098453100,-1970.12271033,0.00025884,2]
[320033752,1711098453120,-154.84515485,0.00025892,2]
[320033753,1711098453141,-913.85533694,0.00025904,2]
[320033754,1711098453161,-1534.41024106,0.00025904,2]
[320033755,1711098453342,-250.65292951,0.00026814,2]
[320033756,1711098453366,-500.0,0.00027397,2]
[320033757,1711098453386,-500.0,0.00027397,2]
[320033758,1711098453405,-500.0,0.00027397,2]
[320033759,1711098453426,-500.0,0.00027397,2]
[320033760,1711098453447,-500.0,0.00027397,2]
[320033761,1711098453466,-602.0891144,0.00027397,2]
[320033762,1711098453484,-169.297801,0.00027397,2]
[320033763,1711098453503,-182.063328,0.00027541,2]
[320033764,1711098453522,-250.65292951,0.00027843,2]
[320033765,1711098453539,-256.17043437,0.00027843,2]
[320033766,1711098453558,-402.464081,0.00028356,2]
[320033767,1711098453577,-335.0691782,0.00028356,2]
[320033768,1711098453601,-229.97135585,0.00028609,4]
[320033769,1711098453621,-500.0,0.00028767,2]
[320033770,1711098453639,-8609.82211476,0.000288,2]
[320033771,1711098453659,-150.0,0.00028804,2]
[320033772,1711098453680,-250.65292951,0.00028871,2]
[320033773,1711098453701,-616.84182065,0.00028898,2]
[320033774,1711098453720,-154.94804904,0.00028898,2]
[320033775,1711098453739,-210.42644136,0.00028898,2]
[320033776,1711098453757,-403.11295178,0.00028898,2]
[320033777,1711098453776,-187.5384845,0.00028898,2]
[320033778,1711098453794,-211.04247609,0.00028898,2]
[320033779,1711098453814,-301.51840602,0.00028898,2]
[320033780,1711098453832,-965.85369178,0.00028898,2]
[320033781,1711098453850,-161.02102339,0.00028898,2]
[320033782,1711098453869,-316.04759516,0.00028898,2]
[320033783,1711098453889,-232.60756961,0.00028898,2]
[320033784,1711098453909,-575.5868675,0.00028898,2]
[320033785,1711098453929,-472.1801886,0.00028898,2]
[320033786,1711098453950,-182.02353527,0.00028898,2]
[320033787,1711098453970,-633.09151644,0.00028899,2]
[320033788,1711098453989,-230.64613501,0.00028899,2]
[320033789,1711098454009,-500.0,0.00028899,2]
[320033790,1711098454028,-58832.97381891,0.000289,2]
[320033791,1711098454049,-152.526449,0.000289,2]
[320033792,1711098454071,-150.84915085,0.00029774,2]
[320033793,1711098454091,-250.24063936,0.00029774,2]
[320033794,1711098454111,-4014.11503972,0.0002978,2]
[320033795,1711098454130,-7752.82337168,0.0002988,2]
[320033796,1711098454151,-256.17043437,0.00029898,2]
[320033797,1711098454171,-250.65292951,0.000299,2]
[320033798,1711098454194,-400.0,0.000299,2]
[320033799,1711098454214,-333.57088755,0.00029998,2]
[320033800,1711098454233,-302.50783156,0.00029998,2]
[320033801,1711098454252,-241.59521397,0.00029998,2]
[320033802,1711098454271,-255.60627382,0.00029998,2]
[320033803,1711098454289,-421.20570574,0.00029998,2]
[320033804,1711098454308,-397.17042887,0.00029998,7]
[320033805,1711098454329,-321.44480027,0.00029998,2]
[320033806,1711098454347,-187.95660507,0.00029998,2]
[320033807,1711098454366,-2007.56188344,0.00029998,2]
[320033808,1711098454385,-303.58353417,0.00029998,2]
[320033809,1711098454403,-165.97839737,0.00029998,2]
[320033810,1711098454422,-302.19426326,0.00029998,2]
[320033811,1711098454443,-687.57771663,0.00029999,2]
[320033812,1711098454463,-21241.70827997,0.0003,3]
[320033813,1711098454483,-4137.83903154,0.0003,7]
[320034123,1711098638076,-3328.23588263,0.00025887,2]
[320034179,1711098640315,-21342.14658312,0.00025887,2]
[320034751,1711098646154,-474.17740683,0.00025887,2]
[320035256,1711098681535,467.96810815,0.00025886,2]
[320035257,1711098681560,500.0,0.00025886,2]
[320035258,1711098681584,500.0,0.00025886,2]
[320035259,1711098681608,289.85048609,0.00025886,2]
[320035260,1711098681633,500.0,0.00025886,2]
[320035261,1711098681672,264.85183178,0.00025886,2]
[320035262,1711098681699,500.0,0.00025886,2]
[320035263,1711098681726,500.0,0.00025886,2]
[320035264,1711098681752,500.0,0.00025886,2]
[320035265,1711098681783,453.16397881,0.00025886,2]
[320035266,1711098681811,529.3918538,0.00025886,2]
[320035267,1711098682044,500.0,0.00025886,2]
[320035268,1711098682096,500.0,0.00025886,2]
[320035269,1711098682143,500.0,0.00025886,2]
[320035270,1711098682198,158.29122155,0.00025886,2]
[320035271,1711098686637,493.54224124,0.00025886,2]
[320035272,1711098699878,210.6962378,0.00025886,2]
[320035273,1711098721927,3441.48938515,0.00025886,2]
[320035276,1711099536177,-154.84515485,0.00023104,2]
[320035277,1711099536198,-815.88819739,0.00023105,2]
[320035278,1711099536349,-683.54103175,0.00023106,2]
[320035279,1711099536372,-153.0,0.00023121,2]
[320035280,1711099536392,-4673.34890798,0.00023353,2]
[320035281,1711099643100,-153.0,0.00023107,2]
[320035282,1711099643121,-2747.23165129,0.00023352,2]
[320035283,1711099643142,-3643.76234641,0.00023353,2]
[320035284,1711099652109,-16572.88874561,0.00023353,2]
[320035285,1711099652129,-153.0,0.00023381,2]
[320035286,1711099652150,-2101.64000604,0.00023397,2]
[320035287,1711099652170,-153.0,0.00023655,2]
[320035288,1711099652192,-250.0,0.00024053,2]
[320035289,1711099652214,-398.17742176,0.00025747,2]
[320035290,1711099652235,-226.865549,0.00025761,2]
[320035291,1711099652254,-2100.24031266,0.00025851,2]
[320035292,1711099652273,-200.99321263,0.00025851,2]
[320035293,1711099652293,-420.21632635,0.00025859,2]
[320035294,1711099652312,-237.65122113,0.00025859,2]
[320035295,1711099652333,-426.83466291,0.0002586,2]
[320035296,1711099652354,-500.0,0.0002586,2]
[320035297,1711099652374,-500.0,0.0002586,2]
[320035298,1711099652395,-497.97217304,0.0002586,2]
[320035299,1711099652419,-626.35756407,0.0002586,2]
[320035300,1711099652579,-500.0,0.0002586,2]
[320035301,1711099652602,-597.92299744,0.0002586,2]
[320035302,1711099652625,-560.21494291,0.0002586,2]
[320035303,1711099652645,-182.92914124,0.0002586,2]
[320035304,1711099652665,-226.86554898,0.00026796,2]
[320035305,1711099652689,-188.724702,0.0002698,2]
[320035306,1711099652710,-500.0,0.00027397,2]
[320035307,1711099652730,-500.0,0.00027397,2]
[320035308,1711099652752,-500.0,0.00027397,2]
[320035309,1711099652773,-500.0,0.00027397,2]
[320035310,1711099652795,-500.0,0.00027397,2]
[320035311,1711099652817,-500.0,0.00027397,2]
[320035312,1711099652840,-500.0,0.00027397,2]
[320035313,1711099652861,-500.0,0.00027397,2]
[320035314,1711099652882,-500.0,0.00027397,2]
[320035315,1711099652904,-500.0,0.00027397,2]
[320035316,1711099652926,-627.81688635,0.00027397,2]
[320035317,1711099652949,-500.0,0.00027397,2]
[320035318,1711099652971,-169.2978026,0.00027397,2]
[320035319,1711099652992,-398.17742175,0.00027823,2]
[320035320,1711099653014,-226.86554898,0.00027831,2]
[320035321,1711099653035,-226.86554898,0.00028865,2]
[320035322,1711099653056,-1000.0,0.00029,29]
[320035323,1711099653078,-1175.33922708,0.00029898,2]
[320035324,1711099653097,-222.69768656,0.00029898,2]
[320035325,1711099653117,-240.35470573,0.00029898,2]
[320035326,1711099653137,-245.95231577,0.00029898,2]
[320035327,1711099653157,-303.92728219,0.00029898,2]
[320035328,1711099653177,-155.9196241,0.00029898,2]
[320035329,1711099653198,-2824.07778902,0.00029899,2]
[320035330,1711099653219,-398.17742175,0.00029899,2]
[320035331,1711099653240,-3810.22395906,0.000299,2]
[320035332,1711099747118,-226.86554898,0.00025747,2]
[320035333,1711099747138,-942.6694196,0.00025846,2]
[320035399,1711099832455,-2286.92626723,0.00025847,2]
[320035403,1711099832467,-330.25125506,0.00025847,2]
[320035484,1711099838290,-6657.29602892,0.00025847,2]
[320035485,1711099838302,-565.90470413,0.00025847,2]
[320035501,1711099838523,-720.06925466,0.00025847,2]
[320035513,1711099840473,-6272.56225033,0.00025847,2]
[320035514,1711099840487,-565.22309176,0.00025847,2]
[320035515,1711099840499,-594.29,0.00025847,2]
[320035645,1711099846725,-1050.34548557,0.00025847,2]
[320035646,1711099846738,-41748.86069225,0.00025847,2]
[320035647,1711099899707,187.32257474,0.00025746,2]
[320035648,1711099942064,4704.74879012,0.00025489,2]
[320035649,1711100061878,500.0,0.00025845,120]
[320035650,1711100836110,-857.98395183,0.00023985,2]
[320035651,1711100836131,-2000.0,0.00025058,2]
[320035652,1711100836151,-2000.0,0.00025227,2]
[320035653,1711100836171,-2297.2690116,0.00025526,2]
[320035654,1711100836192,-308.2066983,0.00025651,2]
[320035655,1711100836212,-1514.21243641,0.00025747,2]
[320035656,1711100836365,-175.961125,0.00026286,2]
[320035657,1711100836387,-2000.0,0.000265,2]
[320035658,1711100836408,-280.6190522,0.00026697,2]
[320035659,1711100836429,-441.59561657,0.00027297,2]
[320035660,1711100836450,-154.84515485,0.00027395,2]
[320035661,1711100836471,-500.0,0.00027397,2]
[320035662,1711100836491,-348.98107293,0.00027397,2]
[320035663,1711100842113,-151.01892707,0.00027397,2]
[320035664,1711100842133,-500.0,0.00027397,2]
[320035665,1711100842154,-500.0,0.00027397,2]
[320035666,1711100842174,-500.0,0.00027397,2]
[320035667,1711100842197,-500.0,0.00027397,2]
[320035668,1711100842218,-858.69,0.00027397,2]
[320035669,1711100842238,-525.50489447,0.00027397,2]
[320035670,1711100844098,-357.26510553,0.00027397,2]
[320035671,1711100844120,-500.0,0.00027397,2]
[320035672,1711100844144,-362.78168864,0.00027397,2]
[320035673,1711100844169,-500.0,0.00027397,2]
[320035674,1711100844192,-500.0,0.00027397,2]
[320035675,1711100844214,-500.0,0.00027397,2]
[320035676,1711100844236,-500.0,0.00027397,2]
[320035677,1711100844259,-1830.2,0.00027397,2]
[320035678,1711100844282,-1961.44,0.00027397,2]
[320035679,1711100844304,-1852.86,0.00027397,2]
[320035680,1711100844325,-500.0,0.00027397,2]
[320035681,1711100844347,-949.79,0.00027397,2]
[320035682,1711100844369,-2696.76,0.00027397,2]
[320035683,1711100844390,-502.10698507,0.00027397,2]
[320035684,1711100844410,-2889.63,0.00027397,2]
[320035685,1711100844431,-500.0,0.00027397,2]
[320035686,1711100844453,-500.0,0.00027397,2]
[320035687,1711100844474,-504.25583823,0.00027397,2]
[320035688,1711100844494,-500.0,0.00027397,2]
[320035689,1711100844515,-642.74,0.00027397,2]
[320035690,1711100844536,-566.85,0.00027397,2]
[320035691,1711100844558,-500.0,0.00027397,2]
[320035692,1711100844579,-500.0,0.00027397,2]
[320035693,1711100844600,-500.0,0.00027397,2]
[320035694,1711100844621,-2199.42,0.00027397,2]
[320035695,1711100844647,-500.0,0.00027397,2]
[320035696,1711100844667,-500.74636841,0.00027397,2]
[320035697,1711100844690,-919.69,0.00027397,2]
[320035698,1711100844711,-5549.51379799,0.00027397,2]
[320035699,1711100853101,-181.36506606,0.00027396,2]
[320035700,1711100853122,-12095.54620201,0.00027397,2]
[320035701,1711100853141,-3161.96,0.00027397,2]
[320035702,1711100853161,-166.666666,0.00027397,2]
[320035703,1711100853181,-2000.0,0.000275,2]
[320035704,1711100853208,-441.59561655,0.00027708,2]
[320035705,1711100853228,-191.97357211,0.00027943,2]
[320035706,1711100853248,-548.60552928,0.00027943,2]
[320035707,1711100853271,-307.39444955,0.00027943,2]
[320035708,1711100853295,-500.0,0.00027943,2]
[320035709,1711100853318,-500.0,0.00027943,2]
[320035710,1711100853340,-500.0,0.00027943,2]
[320035711,1711100853362,-500.0,0.00027943,2]
[320035712,1711100853383,-500.0,0.00027943,2]
[320035713,1711100853404,-549.32089256,0.00027943,2]
[320035714,1711100853424,-460.3614579,0.00027943,2]
[320035715,1711100853452,-500.0,0.00027943,2]
[320035716,1711100853473,-500.86261905,0.00027943,2]
[320035717,1711100853495,-300.26398072,0.00027943,2]
[320035718,1711100853515,-500.0,0.00027943,2]
[320035719,1711100853536,-503.96118222,0.00027943,2]
[320035720,1711100853557,-500.0,0.00027943,2]
[320035721,1711100853577,-1471.16,0.00027943,2]
[320035722,1711100853597,-500.0,0.00027944,2]
[320035723,1711100853617,-314.53886083,0.00027944,2]
[320035724,1711100853636,-500.0,0.00027944,2]
[320035725,1711100853655,-500.0,0.00027944,2]
[320035726,1711100853675,-617.22,0.00027944,2]
[320035727,1711100853699,-500.0,0.00027944,2]
[320035728,1711100853718,-500.0,0.00027944,2]
[320035729,1711100853737,-500.0,0.00027944,2]
[320035730,1711100853757,-5993.01,0.00027944,2]
[320035731,1711100853776,-563.24,0.00027944,2]
[320035732,1711100853796,-854.31,0.00027944,2]
[320035733,1711100853815,-6482.37744358,0.00027944,2]
[320035734,1711100957141,-250.0,0.00025683,2]
[320035900,1711101038877,-8193.35289042,0.00025837,2]
[320035901,1711101038886,-775.75947115,0.00025837,2]
[320035902,1711101038896,-1079.94,0.00027397,2]
[320035903,1711101038905,-8714.52989659,0.00027397,2]
[320035904,1711101038917,-138.40010341,0.00027397,2]
[320035905,1711101038928,-1617.19,0.00027397,2]
[320035906,1711101038938,-500.0,0.00027397,2]
[320035907,1711101038948,-2344.37,0.00027397,2]
[320035908,1711101038958,-264.95736993,0.00027844,2]
[320035909,1711101038967,-318.08685429,0.00027942,2]
[320035910,1711101038979,-5743.3,0.00027943,2]
[320035911,1711101038988,-500.0,0.00027943,2]
[320035912,1711101038997,-747.31939945,0.00027943,2]
[320035913,1711101039008,-319.88118119,0.00027943,2]
[320036143,1711101042748,-500.0,0.00027397,2]
[320036144,1711101042758,-361.73941936,0.00027943,2]
[320036145,1711101042767,-514.52070396,0.00027943,2]
[320036146,1711101042777,-500.0,0.00027943,2]
[320036147,1711101042798,-8126.6,0.00027943,2]
[320036148,1711101042808,-509.09827482,0.00027943,2]
[320036150,1711101042817,-1904.67,0.00027943,2]
[320036151,1711101042827,-500.0,0.00027943,2]
[320036152,1711101042837,-500.0,0.00027943,2]
[320036153,1711101042849,-145.03959881,0.00027943,2]
[320036154,1711101042868,-354.96040119,0.00027943,2]
[320036155,1711101042878,-500.0,0.00027943,2]
[320036156,1711101042887,-500.0,0.00027943,2]
[320036160,1711101042897,-500.0,0.00027943,2]
[320036163,1711101042906,-2233.03,0.00027943,2]
[320036166,1711101042916,-500.0,0.00027943,2]
[320036169,1711101042925,-482.12225099,0.00027943,2]
[320036172,1711101042935,-1499.67782043,0.00027943,2]
[320036394,1711101046468,-672.05,0.00027397,2]
[320036395,1711101046478,-608.10217957,0.00027943,2]
[320036396,1711101046489,-500.0,0.00027943,2]
[320036397,1711101046499,-580.32681487,0.00027943,2]
[320036398,1711101046510,-500.44546541,0.00027943,2]
[320036399,1711101046520,-500.0,0.00027943,2]
[320036400,1711101046529,-502.35013588,0.00027943,2]
[320036401,1711101046539,-500.0,0.00027943,2]
[320036402,1711101046548,-500.0,0.00027943,2]
[320036403,1711101046558,-501.28795322,0.00027943,2]
[320036404,1711101046567,-500.0,0.00027943,2]
[320036405,1711101046577,-5223.95566498,0.00027943,2]
[320036417,1711101059912,154.84515485,0.00025683,2]
[320036418,1711101077846,155.21767198,0.00025683,2]
[320036423,1711101927506,10000.0,0.00021,2]
[320036424,1711102050136,-815.88819739,0.00022189,2]
[320036425,1711102050155,-154.84515485,0.0002219,2]
[320036426,1711102050175,-154.84515485,0.00022191,2]
[320036427,1711102050195,-1749.36244441,0.00022191,2]
[320036428,1711102054106,15745.0,0.00021,2]
[320036429,1711102063982,150.0,0.00020089,2]
[320036430,1711102152153,-412.62630958,0.00022185,2]
[320036431,1711102152173,-154.84515485,0.00022186,2]
[320036432,1711102152193,-683.54103175,0.00022187,2]
[320036433,1711102152214,-3441.48938515,0.00022188,2]
[320036434,1711102152234,-507.260401,0.000222,2]
[320036435,1711102152253,-280.6190522,0.00022236,2]